fUSD/lending_fUSD_20250106
["ID","MTS","AMOUNT","RATE_DAILY","PERIOD"]
[347858189,1736163584184,-500.0,9.999e-05,2]
[347858190,1736163584205,-563.38,9.999e-05,2]
[347858191,1736163584226,-500.0,9.999e-05,2]
[347858192,1736163584248,-500.0,9.999e-05,2]
[347858193,1736163584269,-205.52575901,9.999e-05,2]
[347858194,1736163584290,-500.0,9.999e-05,2]
[347858195,1736163584311,-500.0,9.999e-05,2]
[347858196,1736163584332,-500.0,9.999e-05,2]
[347858197,1736163584353,-219.4,9.999e-05,2]
[347858198,1736163584375,-500.0,9.999e-05,2]
[347858199,1736163584396,-500.0,9.999e-05,2]
[347858200,1736163584418,-480.66,9.999e-05,2]
[347858201,1736163584439,-500.0,9.999e-05,2]
[347858202,1736163584460,-500.0,9.999e-05,2]
[347858203,1736163584482,-500.0,9.999e-05,2]
[347858204,1736163584503,-564.79,9.999e-05,2]
[347858205,1736163584524,-500.0,9.999e-05,2]
[347858206,1736163584545,-500.0,9.999e-05,2]
[347858207,1736163584567,-500.54,9.999e-05,2]
[347858208,1736163584588,-506.0,9.999e-05,2]
[347858209,1736163584609,-645.59,9.999e-05,2]
[347858210,1736163584632,-500.0,9.999e-05,2]
[347858211,1736163584655,-240.83504539,9.999e-05,2]
[347858212,1736163584828,-259.16495461,9.999e-05,2]
[347858213,1736163584852,-500.0,9.999e-05,2]
[347858214,1736163584873,-500.0,9.999e-05,2]
[347858215,1736163584897,-500.0,9.999e-05,2]
[347858216,1736163584920,-377.4,9.999e-05,2]
[347858217,1736163584943,-500.0,9.999e-05,2]
[347858218,1736163584965,-746.38,9.999e-05,2]
[347858219,1736163584987,-500.0,9.999e-05,2]
[347858220,1736163585009,-500.0,9.999e-05,2]
[347858221,1736163585030,-500.0,9.999e-05,2]
[347858222,1736163585052,-500.0,9.999e-05,2]
[347858223,1736163585074,-500.0,9.999e-05,2]
[347858224,1736163585095,-500.0,9.999e-05,2]
[347858225,1736163585117,-500.0,9.999e-05,2]
[347858226,1736163585138,-500.0,9.999e-05,2]
[347858227,1736163585161,-500.0,9.999e-05,2]
[347858228,1736163585182,-500.0,9.999e-05,2]
[347858229,1736163585203,-500.0,9.999e-05,2]
[347858230,1736163585323,500.0,9.999e-05,2]
[347858231,1736163585724,500.0,9.999e-05,2]
[347858232,1736163586334,500.0,9.999e-05,2]
[347858233,1736163587052,256.2,9.999e-05,2]
[347858234,1736163588034,500.0,9.999e-05,2]
[347858235,1736163588199,500.0,9.999e-05,2]
[347858236,1736163588236,504.69433204,9.999e-05,2]
[347858237,1736163589719,500.0,9.999e-05,2]
[347858238,1736163592161,503.11248164,9.999e-05,2]
[347858239,1736163593080,500.33994887,9.999e-05,2]
[347858240,1736163593703,500.0,9.999e-05,2]
[347858241,1736163597938,500.0,9.999e-05,2]
[347858242,1736163600325,500.0,9.999e-05,2]
[347858243,1736163605621,500.0,9.999e-05,2]
[347858244,1736163610552,501.78816982,9.999e-05,2]
[347858245,1736163612409,439.12,9.999e-05,2]
[347858246,1736163612525,500.0,9.999e-05,2]
[347858248,1736163618250,500.0,9.999e-05,2]
[347858249,1736163618638,500.0,9.999e-05,2]
[347858250,1736163622689,500.0,9.999e-05,2]
[347858251,1736163623812,500.0,9.999e-05,2]
[347858252,1736163625846,500.0,9.999e-05,2]
[347858253,1736163630472,500.0,9.999e-05,2]
[347858255,1736163637672,524.24,9.999e-05,2]
[347858256,1736163643877,500.0,9.999e-05,2]
[347858257,1736163645720,587.46,9.999e-05,2]
[347858259,1736163646872,500.0,9.999e-05,2]
[347858260,1736163655305,359.26526887,9.999e-05,2]
[347858261,1736163655761,500.0,9.999e-05,2]
[347858263,1736163661440,166.35,7.788e-05,2]
[347858264,1736163663812,500.0,9.999e-05,2]
[347858265,1736163668535,500.0,9.999e-05,2]
[347858266,1736163671128,500.0,9.999e-05,2]
[347858267,1736163672831,500.0,9.999e-05,2]
[347858268,1736163674563,216.34738962,9.999e-05,2]
[347858269,1736163676489,500.0,9.999e-05,2]
[347858271,1736163678459,500.0,9.999e-05,2]
[347858272,1736163681459,500.0,9.999e-05,2]
[347858273,1736163686129,500.0,9.999e-05,2]
[347858274,1736163687793,500.0,9.999e-05,2]
[347858275,1736163687829,500.0,9.999e-05,2]
[347858276,1736163690302,500.0,9.999e-05,2]
[347858277,1736163690959,500.0,9.999e-05,2]
[347858279,1736163693968,737.47,9.999e-05,2]
[347858280,1736163702277,201.9,9.999e-05,2]
[347858281,1736163702302,521.12,9.999e-05,2]
[347858282,1736163704618,500.0,9.999e-05,2]
[347858284,1736163721620,500.0,9.999e-05,2]
[347858285,1736163721717,631.11,9.999e-05,2]
[347858287,1736163726557,500.0,9.999e-05,2]
[347858288,1736163730457,740.24,9.999e-05,2]
[347858290,1736163747927,500.0,9.999e-05,2]
[347858291,1736163749950,500.0,9.999e-05,2]
[347858292,1736163751626,500.0,9.999e-05,2]
[347858293,1736163756228,500.0,9.999e-05,2]
[347858295,1736163757319,500.0,9.999e-05,2]
[347858296,1736163760297,507.08,9.999e-05,2]
[347858297,1736163761458,500.0,9.999e-05,2]
[347858298,1736163762806,500.0,9.999e-05,2]
[347858299,1736163767047,500.0,9.999e-05,2]
[347858301,1736163776708,500.0,9.999e-05,2]
[347858302,1736163782841,500.0,9.999e-05,2]
[347858304,1736163789214,500.0,9.999e-05,2]
[347858305,1736163794644,575.57122768,9.999e-05,2]
[347858306,1736163795098,500.0,9.999e-05,2]
[347858307,1736163801217,550.58170074,9.999e-05,2]
[347858308,1736163802349,500.0,9.999e-05,2]
[347858310,1736163808212,500.0,9.999e-05,2]
[347858311,1736163813048,439.6,9.999e-05,2]
[347858312,1736163815183,622.93601706,9.999e-05,2]
[347858313,1736163815214,500.0,9.999e-05,2]
[347858314,1736163817341,500.0,9.999e-05,2]
[347858316,1736163821313,500.0,9.999e-05,2]
[347858317,1736163824025,500.0,9.999e-05,2]
[347858318,1736163834660,500.0,9.999e-05,2]
[347858320,1736163836093,500.0,9.999e-05,2]
[347858321,1736163843001,500.0,9.999e-05,2]
[347858322,1736163848039,500.0,9.999e-05,2]
[347858323,1736163848799,500.0,9.999e-05,2]
[347858325,1736163851139,500.0,9.999e-05,2]
[347858326,1736163852875,500.0,9.999e-05,2]
[347858327,1736163856361,859.61,9.999e-05,2]
[347858328,1736163865958,500.0,9.999e-05,2]
[347858330,1736163869657,500.0,9.999e-05,2]
[347858331,1736163871568,500.0,9.999e-05,2]
[347858332,1736163872201,1000.0,9.737e-05,2]
[347858333,1736163874330,500.0,9.999e-05,2]
[347858334,1736163875062,500.0,9.999e-05,2]
[347858335,1736163876274,500.0,9.999e-05,2]
[347858336,1736163878455,546.96032371,9.999e-05,2]
[347858338,1736163882285,503.34386798,9.999e-05,2]
[347858339,1736163885585,274.47,9.999e-05,2]
[347858340,1736163887810,500.0,9.999e-05,2]
[347858341,1736163892932,500.0,9.999e-05,2]
[347858342,1736163896775,500.0,9.999e-05,2]
[347858344,1736163902853,150.0,9.888e-05,2]
[347858346,1736163905632,500.0,9.999e-05,2]
[347858348,1736163918289,500.0,9.999e-05,2]
[347858350,1736163925355,512.22,9.999e-05,2]
[347858352,1736163935275,500.0,9.999e-05,2]
[347858353,1736163937371,500.0,9.999e-05,2]
[347858355,1736163938974,500.0,9.999e-05,2]
[347858356,1736163939413,226.11,9.755e-05,2]
[347858358,1736163950350,500.0,9.999e-05,2]
[347858359,1736163953888,517.86,9.999e-05,2]
[347858362,1736163965701,500.0,9.999e-05,2]
[347858363,1736163969512,278.76,9.999e-05,2]
[347858365,1736163977909,500.0,9.999e-05,2]
[347858379,1736164081974,250.0,9.37e-05,2]
[347858385,1736164141691,882.7247947,9.916e-05,2]
[347858387,1736164154769,1496.88939809,9.914e-05,2]
[347858389,1736164198147,618.09,9.328e-05,2]
[347858390,1736164207108,200.0,9.999e-05,2]
[347858410,1736164231928,-1488.96,0.00010014,2]
[347858411,1736164231937,-1495.57,0.00010014,2]
[347858412,1736164231947,-1495.59,0.00010014,2]
[347858413,1736164231956,-1481.08,0.00010014,2]
[347858414,1736164231966,-1502.79,0.00010014,2]
[347858415,1736164231975,-1510.44,0.00010014,2]
[347858416,1736164231984,-1485.77,0.00010014,2]
[347858417,1736164231993,-1490.03,0.00010014,2]
[347858418,1736164232003,-1484.99,0.00010014,2]
[347858419,1736164232014,-1490.01,0.00010016,2]
[347858420,1736164232023,-1488.3,0.00010018,2]
[347858421,1736164232032,-1474.21,0.00010024,2]
[347858422,1736164232042,-1526.32,0.00010035,2]
[347858423,1736164232052,-200.0,0.00010099,2]
[347858424,1736164232062,-559.1,0.00010137,2]
[347858425,1736164232071,-1481.94,0.0001016,2]
[347858426,1736164232081,-1477.11,0.00010188,2]
[347858427,1736164232091,-150.49,0.000102,2]
[347858428,1736164232100,-1300.0,0.000102,3]
[347858429,1736164232110,-151.28,0.000102,2]
[347858430,1736164232119,-151.91,0.000102,2]
[347858431,1736164232128,-1508.78,0.00010208,2]
[347858432,1736164232137,-1495.38,0.0001021,2]
[347858433,1736164232146,-1476.17,0.00010213,2]
[347858434,1736164232156,-1486.82,0.00010217,2]
[347858435,1736164232165,-1527.65,0.00010221,2]
[347858436,1736164232175,-1499.54,0.00010225,2]
[347858437,1736164232185,-1520.72,0.0001024,2]
[347858438,1736164232195,-150.0,0.00010247,2]
[347858439,1736164232204,-150.0,0.00010272,2]
[347858440,1736164232213,-500.0,0.00010273,2]
[347858441,1736164232223,-500.0,0.00010273,2]
[347858442,1736164232232,-500.0,0.00010273,2]
[347858443,1736164232241,-500.0,0.00010273,2]
[347858444,1736164232250,-500.0,0.00010273,2]
[347858445,1736164232259,-500.0,0.00010273,2]
[347858446,1736164232269,-500.0,0.00010273,2]
[347858447,1736164232278,-500.0,0.00010273,2]
[347858448,1736164232287,-500.0,0.00010273,2]
[347858449,1736164232297,-500.0,0.00010273,2]
[347858450,1736164232306,-500.0,0.00010273,2]
[347858451,1736164232315,-500.0,0.00010273,2]
[347858452,1736164232325,-500.0,0.00010273,2]
[347858453,1736164232335,-323.52,0.00010273,2]
[347858454,1736164232344,-500.0,0.00010273,2]
[347858455,1736164232353,-500.0,0.00010273,2]
[347858456,1736164232362,-500.0,0.00010273,2]
[347858457,1736164232372,-500.0,0.00010273,2]
[347858458,1736164232381,-500.0,0.00010273,2]
[347858459,1736164232391,-500.0,0.00010273,2]
[347858460,1736164232400,-500.0,0.00010273,2]
[347858461,1736164232409,-500.0,0.00010273,2]
[347858462,1736164232421,-500.0,0.00010273,2]
[347858463,1736164232432,-500.0,0.00010273,2]
[347858464,1736164232442,-500.0,0.00010273,2]
[347858465,1736164232451,-500.0,0.00010273,2]
[347858466,1736164232461,-500.0,0.00010273,2]
[347858467,1736164232470,-500.0,0.00010273,2]
[347858468,1736164232480,-500.0,0.00010273,2]
[347858469,1736164232489,-524.24,0.00010273,2]
[347858470,1736164232499,-500.0,0.00010273,2]
[347858471,1736164232508,-587.46,0.00010273,2]
[347858472,1736164232518,-500.0,0.00010273,2]
[347858473,1736164232528,-500.0,0.00010273,2]
[347858474,1736164232538,-500.0,0.00010273,2]
[347858475,1736164232548,-500.0,0.00010273,2]
[347858476,1736164232557,-542.25,0.00010273,2]
[347858477,1736164232567,-500.0,0.00010273,2]
[347858478,1736164232577,-500.0,0.00010273,2]
[347858479,1736164232587,-500.0,0.00010273,2]
[347858480,1736164232596,-500.0,0.00010273,2]
[347858481,1736164232606,-500.0,0.00010273,2]
[347858482,1736164232616,-500.0,0.00010273,2]
[347858483,1736164232626,-737.47,0.00010273,2]
[347858484,1736164232635,-521.12,0.00010273,2]
[347858485,1736164232646,-500.0,0.00010273,2]
[347858486,1736164232656,-500.0,0.00010273,2]
[347858487,1736164232668,-631.11,0.00010273,2]
[347858488,1736164232679,-500.0,0.00010273,2]
[347858489,1736164232690,-740.24,0.00010273,2]
[347858490,1736164232700,-193.39,0.00010273,2]
[347858491,1736164232711,-500.0,0.00010273,2]
[347858492,1736164232721,-500.0,0.00010273,2]
[347858493,1736164232731,-500.0,0.00010273,2]
[347858494,1736164232741,-507.08,0.00010273,2]
[347858495,1736164232750,-526.48,0.00010273,2]
[347858496,1736164232761,-558.84650284,0.00010273,2]
[347858497,1736164232770,-500.0,0.00010273,2]
[347858498,1736164232780,-500.0,0.00010273,2]
[347858499,1736164232789,-500.0,0.00010273,2]
[347858500,1736164232798,-500.0,0.00010273,2]
[347858501,1736164232807,-500.0,0.00010273,2]
[347858502,1736164232817,-575.88,0.00010273,2]
[347858503,1736164232826,-500.0,0.00010273,2]
[347858504,1736164232836,-500.0,0.00010273,2]
[347858505,1736164232845,-500.0,0.00010273,2]
[347858506,1736164232854,-500.0,0.00010273,2]
[347858507,1736164232864,-568.43146041,0.00010273,2]
[347858508,1736164232872,-500.0,0.00010273,2]
[347858509,1736164232882,-500.0,0.00010273,2]
[347858510,1736164232891,-500.0,0.00010273,2]
[347858511,1736164232900,-232.7115894,0.00010273,2]
[347858512,1736164232909,-354.9,0.00010273,2]
[347858513,1736164232919,-500.0,0.00010273,2]
[347858514,1736164232929,-859.61,0.00010273,2]
[347858515,1736164232938,-500.0,0.00010273,2]
[347858516,1736164232947,-500.0,0.00010273,2]
[347858517,1736164232956,-500.0,0.00010273,2]
[347858518,1736164232965,-447.47,0.00010273,2]
[347858519,1736164232974,-500.0,0.00010273,2]
[347858520,1736164232983,-500.0,0.00010273,2]
[347858521,1736164232992,-500.0,0.00010273,2]
[347858522,1736164233001,-500.0,0.00010273,2]
[347858523,1736164233013,-500.0,0.00010273,2]
[347858524,1736164233022,-500.0,0.00010273,2]
[347858525,1736164233258,-532.87845394,0.00010273,2]
[347858526,1736164233268,-512.22,0.00010273,2]
[347858527,1736164233278,-500.0,0.00010273,2]
[347858528,1736164233287,-500.0,0.00010273,2]
[347858529,1736164233296,-500.0,0.00010273,2]
[347858530,1736164233305,-517.86,0.00010273,2]
[347858531,1736164233315,-500.0,0.00010273,2]
[347858532,1736164233324,-2600.0,0.000103,3]
[347858533,1736164233333,-173.58061399,0.00010334,2]
[347858534,1736164233342,-3900.0,0.000104,3]
[347858535,1736164233352,-293.3099,0.00010445,2]
[347858536,1736164233362,-22998.1236,0.00010446,2]
[347858537,1736164233371,-1013.0843,0.00010447,2]
[347858538,1736164233380,-5000.0,0.00010447,2]
[347858539,1736164233389,-1284.7797,0.00010447,2]
[347858540,1736164233398,-2500.0,0.00010447,2]
[347858541,1736164233407,-31499.9608,0.00010447,2]
[347858542,1736164233417,-568.906,0.0001045,2]
[347858543,1736164233426,-531.72,0.00010464,2]
[347858544,1736164233436,-618.09,0.00010494,2]
[347858545,1736164233446,-5200.0,0.000105,3]
[347858546,1736164233455,-917.51,0.00010543,2]
[347858547,1736164233464,-500.0,0.00010543,2]
[347858548,1736164233475,-500.0,0.00010543,2]
[347858549,1736164233484,-953.53,0.00010543,2]
[347858550,1736164233494,-500.0,0.00010543,2]
[347858551,1736164233503,-676.66,0.00010543,2]
[347858552,1736164233513,-1000.0,0.00010543,2]
[347858553,1736164233522,-554.59,0.00010543,2]
[347858554,1736164233532,-500.0,0.00010543,2]
[347858555,1736164233541,-1662.65,0.00010543,2]
[347858556,1736164233551,-1473.14,0.00010543,2]
[347858557,1736164233560,-500.15393638,0.00010545,2]
[347858558,1736164233570,-500.30312519,0.00010545,2]
[347858559,1736164233580,-500.0,0.00010545,2]
[347858560,1736164233589,-500.0,0.00010546,2]
[347858561,1736164233599,-500.0,0.00010546,2]
[347858562,1736164233608,-453.66948551,0.00010546,2]
[347858563,1736164235811,-46.33051449,0.00010546,2]
[347858564,1736164235821,-488.36753171,0.00010546,2]
[347858565,1736164235831,-500.0,0.00010546,2]
[347858566,1736164235841,-9.08424706,0.00010546,2]
[347858567,1736164235859,-353.730012,0.00010546,2]
[347858568,1736164235871,-138.89547556,0.00010546,2]
[347858569,1736164235881,-500.58510681,0.00010546,2]
[347858570,1736164235891,-498.52385353,0.00010546,2]
[347858571,1736164235902,-2.36252508,0.00010546,2]
[347858572,1736164235912,-500.38248434,0.00010546,2]
[347858573,1736164235922,-33.03277058,0.00010546,2]
[347858574,1736164235933,-466.96722942,0.00010546,2]
[347858575,1736164235943,-501.01498938,0.00010546,2]
[347858576,1736164235952,-112.0177811,0.00010546,2]
[347858577,1736164235964,-387.9822189,0.00010546,2]
[347858578,1736164235973,-26.08178114,0.00010546,2]
[347858579,1736164236047,-473.91821886,0.00010546,2]
[347858580,1736164236057,-499.18197178,0.00010546,2]
[347858581,1736164236067,-500.62189997,0.00010546,2]
[347858582,1736164236076,-500.73460745,0.00010546,2]
[347858583,1736164236087,-500.0,0.00010546,2]
[347858584,1736164236097,-145.85062874,0.00010546,2]
[347858585,1736164236147,-355.5538477,0.00010546,2]
[347858586,1736164236157,-500.0,0.00010546,2]
[347858587,1736164236166,-2.21596479,0.00010546,2]
[347858588,1736164236180,-498.68869246,0.00010546,2]
[347858589,1736164236191,-501.17877521,0.00010546,2]
[347858590,1736164236200,-0.13253233,0.00010546,2]
[347858595,1736164237750,-492.065,0.00010014,2]
[347858596,1736164237806,-1031.945,0.00010014,2]
[347858597,1736164237816,-476.83282989,0.00010447,2]
[347858598,1736164237827,-703.23,0.00010447,2]
[347858599,1736164237883,-1319.93717011,0.00010447,2]
[347858600,1736164237894,-501.33172603,0.00010546,2]
[347858601,1736164237904,-501.63872328,0.00010546,2]
[347858602,1736164237913,-501.32859064,0.00010546,2]
[347858603,1736164237930,-501.2773116,0.00010546,2]
[347858604,1736164237940,-500.0,0.00010546,2]
[347858605,1736164237950,-500.51172738,0.00010546,2]
[347858606,1736164237960,-500.0,0.00010546,2]
[347858607,1736164237969,-500.0,0.00010546,2]
[347858608,1736164237978,-502.69811503,0.00010546,2]
[347858609,1736164237988,-501.00282612,0.00010546,2]
[347858610,1736164237998,-500.35373502,0.00010546,2]
[347858611,1736164238008,-2633.0,0.00010546,2]
[347858612,1736164238020,-502.05273493,0.00010546,2]
[347858613,1736164238031,-1534.56,0.00010546,2]
[347858614,1736164238041,-501.46697405,0.00010546,2]
[347858615,1736164238051,-2402.28,0.00010546,2]
[347858616,1736164238060,-500.0,0.00010546,2]
[347858617,1736164238070,-3052.67,0.00010546,2]
[347858618,1736164238080,-500.0,0.00010546,2]
[347858619,1736164238090,-500.0,0.00010546,2]
[347858620,1736164238099,-500.0,0.00010546,2]
[347858640,1736164238296,-630.78,0.00010546,2]
[347858642,1736164238306,-500.0,0.00010546,2]
[347858643,1736164238316,-352.56061788,0.00010546,2]
[347858645,1736164238325,-502.9020632,0.00010546,2]
[347858647,1736164238334,-622.00682174,0.00010546,2]
[347858649,1736164238344,-500.0,0.00010547,2]
[347858651,1736164238354,-500.0,0.00010547,2]
[347858653,1736164238363,-506.80296002,0.00010547,2]
[347858656,1736164238372,-500.0,0.00010547,2]
[347858659,1736164238383,-500.0,0.00010547,2]
[347858662,1736164238392,-500.0,0.00010547,2]
[347858664,1736164238402,-500.0,0.00010547,2]
[347858666,1736164238411,-500.0,0.00010547,2]
[347858668,1736164238423,-500.0,0.00010547,2]
[347858670,1736164238432,-500.0,0.00010547,2]
[347858672,1736164238442,-500.0,0.00010547,2]
[347858674,1736164238452,-569.09,0.00010547,2]
[347858676,1736164238461,-500.0,0.00010547,2]
[347858678,1736164238470,-500.0,0.00010547,2]
[347858680,1736164238479,-500.0,0.00010547,2]
[347858682,1736164238489,-500.0,0.00010547,2]
[347858684,1736164238498,-500.0,0.00010547,2]
[347858686,1736164238507,-500.0,0.00010547,2]
[347858688,1736164238517,-500.0,0.00010547,2]
[347858690,1736164238526,-500.0,0.00010547,2]
[347858692,1736164238535,-500.0,0.00010547,2]
[347858694,1736164238544,-524.24,0.00010547,2]
[347858696,1736164238554,-587.46,0.00010547,2]
[347858698,1736164238563,-500.0,0.00010547,2]
[347858700,1736164238572,-410.25336199,0.00010547,2]
[347858702,1736164238582,-500.0,0.00010547,2]
[347858704,1736164238592,-500.0,0.00010547,2]
[347858706,1736164238601,-500.0,0.00010547,2]
[347858708,1736164238610,-500.0,0.00010547,2]
[347858710,1736164238620,-500.0,0.00010547,2]
[347858712,1736164238629,-500.0,0.00010547,2]
[347858714,1736164238639,-500.0,0.00010547,2]
[347858716,1736164238648,-737.47,0.00010547,2]
[347858718,1736164238658,-521.12,0.00010547,2]
[347858720,1736164238668,-500.0,0.00010547,2]
[347858722,1736164238681,-500.0,0.00010547,2]
[347858724,1736164238691,-631.11,0.00010547,2]
[347858727,1736164238701,-500.0,0.00010547,2]
[347858729,1736164238710,-740.24,0.00010547,2]
[347858731,1736164238720,-503.55418734,0.00010547,2]
[347858733,1736164238730,-500.0,0.00010547,2]
[347858735,1736164238739,-507.08,0.00010547,2]
[347858737,1736164238748,-500.0,0.00010547,2]
[347858739,1736164238757,-500.0,0.00010547,2]
[347858741,1736164238769,-515.48,0.00010547,2]
[347858742,1736164238778,-500.0,0.00010547,2]
[347858744,1736164238787,-500.0,0.00010547,2]
[347858747,1736164238797,-500.0,0.00010547,2]
[347858749,1736164238806,-500.0,0.00010547,2]
[347858750,1736164238815,-500.0,0.00010547,2]
[347858753,1736164238824,-500.0,0.00010547,2]
[347858755,1736164238834,-190.49291741,0.00010547,2]
[347858757,1736164238842,-500.0,0.00010547,2]
[347858759,1736164238852,-500.0,0.00010547,2]
[347858761,1736164238861,-859.61,0.00010547,2]
[347858763,1736164238870,-258.34,0.00010547,2]
[347858765,1736164238879,-500.0,0.00010547,2]
[347858767,1736164238888,-500.0,0.00010547,2]
[347858768,1736164238897,-500.0,0.00010547,2]
[347858769,1736164238906,-500.0,0.00010547,2]
[347858770,1736164238915,-500.0,0.00010547,2]
[347858771,1736164238926,-500.0,0.00010547,2]
[347858772,1736164238935,-512.22,0.00010547,2]
[347858773,1736164238944,-500.0,0.00010547,2]
[347858774,1736164238953,-517.86,0.00010547,2]
[347858775,1736164238962,-500.0,0.00010547,2]
[347858776,1736164238972,-500.0,0.00010598,2]
[347858777,1736164238981,-1290.65,0.00010598,2]
[347858778,1736164238990,-1411.49,0.00010598,2]
[347858779,1736164238999,-500.0,0.00010598,2]
[347858780,1736164239009,-772.17,0.00010598,2]
[347858781,1736164239021,-500.0,0.00010598,2]
[347858782,1736164239030,-500.0,0.00010598,2]
[347858783,1736164239039,-1455.5,0.00010598,2]
[347858784,1736164239048,-500.0,0.00010598,2]
[347858785,1736164239059,-500.0,0.00010598,2]
[347858786,1736164239068,-767.69,0.00010598,2]
[347858787,1736164239077,-500.0,0.00010598,2]
[347858788,1736164239086,-500.0,0.00010598,2]
[347858789,1736164239095,-500.0,0.00010598,2]
[347858790,1736164239104,-753.46,0.00010598,2]
[347858791,1736164239114,-500.0,0.00010598,2]
[347858792,1736164239123,-500.0,0.00010598,2]
[347858793,1736164239133,-500.0,0.00010598,2]
[347858794,1736164239142,-1409.06,0.00010599,2]
[347858795,1736164239151,-644.34,0.00010599,2]
[347858796,1736164239160,-500.0,0.00010599,2]
[347858797,1736164239170,-992.5,0.00010599,2]
[347858798,1736164239179,-553.3,0.00010599,2]
[347858799,1736164239188,-3797.91,0.00010599,2]
[347858800,1736164239198,-500.0,0.00010599,2]
[347858801,1736164239207,-1398.047305,0.00010599,2]
[347858802,1736164239217,-157.8651,0.00010599,2]
[347858803,1736164239226,-500.0,0.00010599,2]
[347858804,1736164239235,-2645.57,0.00010599,2]
[347858805,1736164239244,-156.313771,0.00010599,2]
[347858806,1736164239255,-500.0,0.00010599,2]
[347858807,1736164239264,-1379.01,0.00010599,2]
[347858808,1736164239273,-500.0,0.00010599,2]
[347858809,1736164239282,-1496.051055,0.00010599,2]
[347858810,1736164239292,-500.0,0.00010599,2]
[347858811,1736164239301,-2102.91,0.00010599,2]
[347858812,1736164239311,-605.96,0.00010599,2]
[347858813,1736164239320,-500.0,0.00010599,2]
[347858814,1736164239330,-500.0,0.00010599,2]
[347858815,1736164239339,-500.0,0.00010599,2]
[347858816,1736164239348,-1044.05,0.00010599,2]
[347858817,1736164239358,-970.9,0.00010599,2]
[347858818,1736164239367,-500.0,0.00010599,2]
[347858819,1736164239376,-500.0,0.00010599,2]
[347858820,1736164239386,-2515.82,0.00010599,2]
[347858821,1736164239395,-700.5,0.00010599,2]
[347858822,1736164239404,-1634.73,0.00010599,2]
[347858823,1736164239413,-500.0,0.00010599,2]
[347858824,1736164239425,-6500.0,0.000106,3]
[347858825,1736164239435,-576.70736174,0.00010607,2]
[347858826,1736164239445,-150.88,0.000107,2]
[347858827,1736164239454,-1300.0,0.000107,3]
[347858828,1736164239464,-150.34,0.000107,2]
[347858829,1736164239473,-150.79,0.000107,2]
[347858830,1736164239482,-150.2,0.000107,2]
[347858831,1736164239492,-151.42,0.000107,2]
[347858832,1736164239501,-152.54,0.000107,2]
[347858833,1736164239511,-385.3619,0.00010721,2]
[347858834,1736164239520,-150.0,0.00010775,2]
[347858835,1736164239529,-410.452858,0.0001078,2]
[347858836,1736164239539,-500.0,0.00010798,2]
[347858837,1736164239548,-500.0,0.00010798,2]
[347858838,1736164239558,-500.0,0.00010798,2]
[347858839,1736164239567,-500.0,0.00010798,2]
[347858840,1736164239576,-500.0,0.00010798,2]
[347858841,1736164239586,-340.16,0.00010798,2]
[347858842,1736164239596,-500.0,0.00010798,2]
[347858843,1736164239605,-500.0,0.00010798,2]